Cogmind - Beta 10.2 @@@ ROGUE MODE // 2021.01.27 @ 06:37:18 Player: Exp. Geonium Core Result: Destroyed by G-50 Soldier with Heavy Laser Performance ------------- Evolutions (4) 2000 Regions Visited (14) 2800 Robots Destroyed (85) 425 Value Destroyed (4915) 4915 Prototype IDs (3) 60 Alien Tech Used (0) 0 Bonus (3238) 3238 TOTAL SCORE: 13438 Bonus ------- Pacifist 200 High Alert Combat Kills 525 Follower Combat Kills 454 Entered Garrisons 800 Used RIF Installer 1500 Friendly Fire -241 Cogmind --------- Core Integrity 0/850 Matter 290/300 Energy 100/100 System Corruption 0% Temperature Cool (18) Movement Walking (150) Ox1 Location -6/Garrison Parts ------- > --- POWER (1) -------- (None) > --- PROPULSION (4) --- Carbon-fiber Leg Flexi-carbon Leg > --- UTILITY (6) ------ Medium Storage Unit Medium Storage Unit High-capacity Storage Unit Relay Coupler [Grunt] (1) Relay Coupler [Sentry] (5) > --- WEAPON (4) ------- Variable Charge Gun Improved Datajack Remote Datajack Power Sword > --- INVENTORY (20) --- Core Analyzer Core Analyzer Hacking Suite Relay Coupler [NC] (22) Relay Coupler [NC] (28) Relay Coupler [NC] (25) Relay Coupler [ARC] (11) Relay Coupler [Swarmer] (34) Relay Coupler [Swarmer] (35) Relay Coupler [Swarmer] (38) Relay Coupler [Brawler] (30) Relay Coupler [Sentry] (26) Relay Coupler [Demolisher] (25) Relay Coupler [Specialist] (18) Relay Coupler [Specialist] (22) Relay Coupler [Hunter] (19) Relay Coupler [Behemoth] (12) Improved Datajack Improved Datajack Power Sword Peak State ------------ > --- POWER ------------ Light Nuclear Core > --- PROPULSION ------- Heavy Treads Heavy Treads > --- UTILITY ---------- Medium Storage Unit Medium Storage Unit High-capacity Storage Unit Relay Coupler [NC] Relay Coupler [Swarmer] Relay Coupler [Sentry] > --- WEAPON ----------- XL Autogun Array > --- INVENTORY -------- Heavy Treads Core Analyzer Core Analyzer Hacking Suite Relay Coupler [NC] Relay Coupler [Sentry] Relay Coupler [Sentry] Relay Coupler [Demolisher] Relay Coupler [Specialist] Relay Coupler [Hunter] Relay Coupler [Hunter] Relay Coupler [Behemoth] Improved Datajack Improved Datajack Remote Datajack Remote Datajack Greatsword [Rating: 82] Favorites ----------- Power Light Nuclear Core Engine Improved Deuterium Engine Power Core Light Nuclear Core Propulsion Carbon-fiber Leg Treads Light Treads Leg Carbon-fiber Leg Utility Medium Storage Unit Device Makeshift Cloaking Device Storage Medium Storage Unit Processor Makeshift Salvage Targeting Computer Hackware Relay Coupler [Sentry] Weapon XL Autogun Array Energy Gun Medium Laser Ballistic Gun XL Autogun Array Special Weapon Remote Datajack Slashing Weapon Greatsword Special Melee Weapon Improved Datajack Build | -11 -10 -9 -9 -9 -8 -8 -7 -7 -7 -7 -6 -6 -6 -6 ------- Run | Scr Mat Mat Min Exi Min Mat Fac Gar Fac Gar Fac Gar Fac Gar Slots Evolved 8 | . . 2 . . . 2 2 . . . 2 . . . Power . | . . . . . . . . . . . . . . . Propulsion 2 | . . . . . . . 2 . . . . . . . Utility 4 | . . 2 . . . . . . . . 2 . . . Weapon 2 | . . . . . . 2 . . . . . . . . Parts Attached 95 | 2 . . 5 6 5 5 7 . . 15 8 33 6 3 Power 8 | . . . 2 . 1 . 1 . . 1 . 3 . . Engine 4 | . . . 2 . . . 1 . . . . 1 . . Core 4 | . . . . . 1 . . . . 1 . 2 . . Reactor . | . . . . . . . . . . . . . . . Propulsion 26 | 2 . . . . 3 2 5 . . 1 . 10 1 2 Treads 13 | 2 . . . . . 2 5 . . 1 . 3 . . Leg 13 | . . . . . 3 . . . . . . 7 1 2 Wheel . | . . . . . . . . . . . . . . . Hover . | . . . . . . . . . . . . . . . Flight . | . . . . . . . . . . . . . . . Utility 26 | . . . . 4 1 2 1 . . 6 2 8 2 . Device 1 | . . . . 1 . . . . . . . . . . Storage 9 | . . . . 2 1 1 1 . . 1 . 3 . . Processor 1 | . . . . 1 . . . . . . . . . . Hackware 15 | . . . . . . 1 . . . 5 2 5 2 . Protection . | . . . . . . . . . . . . . . . Artifact . | . . . . . . . . . . . . . . . Weapon 35 | . . . 3 2 . 1 . . . 7 6 12 3 1 Energy Gun 5 | . . . 3 . . . . . . . . 1 . 1 Energy Cannon . | . . . . . . . . . . . . . . . Ballistic Gun 12 | . . . . 2 . 1 . . . 2 2 4 1 . Ballistic Cannon . | . . . . . . . . . . . . . . . Launcher . | . . . . . . . . . . . . . . . Special Weapon 8 | . . . . . . . . . . 2 2 3 1 . Impact Weapon . | . . . . . . . . . . . . . . . Slashing Weapon 7 | . . . . . . . . . . 2 2 2 1 . Piercing Weapon . | . . . . . . . . . . . . . . . Special Melee Weapon 3 | . . . . . . . . . . 1 . 2 . . Unidentified Prototypes 1 | . . . . . . 1 . . . . . . . . Parts Lost 22 | . . . 2 . 3 . . . . . . 11 2 4 Power 6 | . . . 2 . . . . . . . . 3 1 . Propulsion 11 | . . . . . 3 . . . . . . 4 1 3 Utility . | . . . . . . . . . . . . . . . Weapon 5 | . . . . . . . . . . . . 4 . 1 Highest Loss Streak 5 | . . . 1 . 3 . . . . . . 5 2 3 Average Slot Usage (%) 71 | . 28 22 44 64 86 70 68 61 61 65 68 79 89 74 Engine 2 | . . . 6 . . . 4 7 7 2 . . 5 . Core 3 | . . . . . 10 9 2 . . 4 6 4 . . Treads 11 | . 28 22 22 22 . 12 22 15 15 15 13 4 . . Leg 8 | . . . . . 20 5 . . . . . 16 25 17 Device 2 | . . . . 7 11 6 . . . . . . . . Storage 16 | . . . . 7 11 12 18 23 23 22 20 18 20 20 Processor 2 | . . . . 8 11 9 3 . . . . . . . Hackware 8 | . . . . . . 7 7 7 7 7 18 14 13 13 Ballistic Gun 8 | . . . . 19 22 8 7 7 7 4 2 9 4 2 Special Weapon 1 | . . . . . . . . . . 2 3 4 4 6 Slashing Weapon 1 | . . . . . . . . . . 2 3 2 5 6 Special Melee Weapon 1 | . . . . . . . . . . 1 . 1 6 6 Naked Turns . | . . . . . . . . . . . . . . . Heaviest Build 73 | . . . 7 43 43 60 73 73 73 73 68 68 68 60 Greatest Support 140 | 3 3 3 40 40 40 40 140 140 140 140 140 140 65 70 Greatest Overweight (x) 2 | . . . . 1 2 2 . . . . . 1 1 1 Average Overweight (x) . | . . . . . . 1 . . . . . . . . Largest Inventory Capacity 20 | 4 4 4 4 16 16 16 20 20 20 20 20 20 20 20 Average Capacity 16 | 4 4 4 4 6 12 13 17 20 20 19 20 19 20 20 Most Carried 20 | 4 4 4 4 6 10 16 19 20 20 20 20 20 20 20 Average Carried 14 | 2 4 4 3 5 9 11 16 19 20 18 18 17 19 19 Final Capacity 20 | 4 4 4 4 16 12 16 20 20 20 20 20 20 20 20 Final Carried 20 | 4 4 4 4 5 10 16 19 20 20 20 19 20 19 20 Class Distribution -------------------- 31% | Bothacker-Mutant 16% | Mutant 15% | Bothacker-Gunner 13% | Hauler-Gunner 12% | Scavenger-Gunner 8% | Scavenger-Mutant Dominant Class ---------------- Mutant | -10/Materials Mutant | -9/Materials Mutant | -9/Mines Mutant | -9/Exiles Scavenger-Mutant | -8/Mines Scavenger-Gunner | -8/Materials Scavenger-Gunner | -7/Factory Hauler-Gunner | -7/Garrison Bothacker-Gunner | -7/Factory Bothacker-Gunner | -7/Garrison Bothacker-Mutant | -6/Factory Bothacker-Mutant | -6/Garrison Bothacker-Mutant | -6/Factory Bothacker-Mutant | -6/Garrison Resources | -11 -10 -9 -9 -9 -8 -8 -7 -7 -7 -7 -6 -6 -6 -6 ----------- Run | Scr Mat Mat Min Exi Min Mat Fac Gar Fac Gar Fac Gar Fac Gar Matter Collected 3380 | 220 . . 45 50 86 250 395 731 . 374 294 850 75 10 Remotely . | . . . . . . . . . . . . . . . Salvage Created 3914 | . . . 61 . 260 555 638 830 . 297 634 497 20 122 Parts 226 | . . . 8 . 17 52 37 41 . 13 36 18 2 2 Haulers Intercepted . | . . . . . . . . . . . . . . . Recyclers Shooed 3 | . . . . . 1 1 . . . . 1 . . . Parts Field Recycled . | . . . . . . . . . . . . . . . Retrieved Matter . | . . . . . . . . . . . . . . . Parts Self-Destructed . | . . . . . . . . . . . . . . . Prevented . | . . . . . . . . . . . . . . . Kills | -11 -10 -9 -9 -9 -8 -8 -7 -7 -7 -7 -6 -6 -6 -6 ------- Run | Scr Mat Mat Min Exi Min Mat Fac Gar Fac Gar Fac Gar Fac Gar Combat Hostiles Destroyed 78 | . . . 4 . 7 8 11 18 . 6 12 10 . 2 Melee 5 | . . . . . . . . . . . 1 2 . 2 Guns 73 | . . . 4 . 7 8 11 18 . 6 11 8 . . Classes Destroyed 10 | . . . 1 . 1 3 4 . . 1 . . . . Recycler 1 | . . . . . . . 1 . . . . . . . Operator 4 | . . . . . . 2 . . . . 1 . 1 . Watcher 1 | . . . . . . 1 . . . . . . . . Swarmer 29 | . . . 4 . 4 . 5 7 . . 4 5 . . Grunt 25 | . . . . . 3 1 . 5 . 4 4 6 . 2 Brawler 4 | . . . . . . . 1 3 . . . . . . Duelist 3 | . . . . . . . 1 . . 1 1 . . . Sentry 14 | . . . . . . 7 3 3 . . 1 . . . Hunter 1 | . . . . . . . 1 . . . . . . . Programmer 3 | . . . . . . . . . . 1 2 . . . Best Kill Streak 5 | . . . 4 . 4 5 4 4 . 3 5 3 1 2 Combat Bots Only 4 | . . . 4 . 4 4 4 4 . 3 4 3 . 2 Max Kills in Single Turn 2 | . . . 1 . 2 1 2 1 . 1 2 2 1 1 Gunslinging 1 | . . . . . 1 . . . . . . . . . Exploded . | . . . . . . . . . . . . . . . Melee 1 | . . . . . . . . . . . 1 1 . 1 Uniques/NPCs Destroyed . | . . . . . . . . . . . . . . . Combat | -11 -10 -9 -9 -9 -8 -8 -7 -7 -7 -7 -6 -6 -6 -6 -------- Run | Scr Mat Mat Min Exi Min Mat Fac Gar Fac Gar Fac Gar Fac Gar Damage Taken 6542 | . . . 397 . 465 162 303 379 100 228 835 2816 530 327 Core 1144 | . . . 52 . 141 28 15 26 8 14 43 626 100 91 Absorbed by Shields 69 | . . . . . . . . . . 59 . 10 . . Core Remaining (%) 87 | 100 100 . . . 51 94 . . . 91 . . . . Volleys Fired 200 | . . . 4 . 18 23 19 42 . 24 30 37 3 . Largest 3 | . . . 2 . 2 1 1 1 . 1 1 3 1 . Hottest 125 | . . . 100 . 40 60 60 60 . 60 60 125 30 . Shots Fired 250 | . . . 8 . 36 23 19 42 . 24 30 65 3 . Gun 221 | . . . 8 . 36 23 19 42 . 15 28 50 . . Cannon . | . . . . . . . . . . . . . . . Launcher . | . . . . . . . . . . . . . . . Special 29 | . . . . . . . . . . 9 2 15 3 . Kinetic 211 | . . . . . 36 23 19 42 . 15 28 48 . . Thermal 10 | . . . 8 . . . . . . . . 2 . . Explosive . | . . . . . . . . . . . . . . . Electromagnetic . | . . . . . . . . . . . . . . . Robot Hit Streak 25 | . . . 2 . 7 8 12 11 . 16 25 11 2 . Robot Miss Streak 5 | . . . 2 . 2 3 3 3 . 4 5 5 1 . Penetration Max 1 | . . . . . . . . . . . . 1 . . Secondary Targets 5 | . . . 3 . 2 . . . . . . . . . Max Gunslinging Chain 1 | . . . 1 . 1 . . . . . . . . . Shots Hit Robots 235 | . . . 4 . 24 20 17 40 . 19 27 60 9 15 Core Hits 155 | . . . 4 . 12 12 19 33 . 13 22 35 1 4 Critical Hits . | . . . . . . . . . . . . . . . Critical Kills . | . . . . . . . . . . . . . . . Critical Parts Destroyed . | . . . . . . . . . . . . . . . Melee Attacks 50 | . . . . . . . . . . . 2 16 14 18 Impact . | . . . . . . . . . . . . . . . Slashing 35 | . . . . . . . . . . . 2 5 12 16 Piercing . | . . . . . . . . . . . . . . . Sneak Attacks 6 | . . . . . . . . . . . . 2 . 4 Combat Hostiles 5 | . . . . . . . . . . . . 1 . 4 Follow-up Attacks . | . . . . . . . . . . . . . . . Damage Inflicted 8850 | . . . 74 . 201 873 806 2012 . 903 1580 1258 216 927 Guns 7214 | . . . 74 . 201 873 786 2012 . 903 1461 904 . . Cannons . | . . . . . . . . . . . . . . . Explosions . | . . . . . . . . . . . . . . . Melee 1613 | . . . . . . . . . . . 116 354 216 927 Ramming 23 | . . . . . . . 20 . . . 3 . . . Kinetic 7101 | . . . . . 201 873 786 2012 . 903 1461 865 . . Thermal 113 | . . . 74 . . . . . . . . 39 . . Explosive . | . . . . . . . . . . . . . . . Electromagnetic . | . . . . . . . . . . . . . . . Impact . | . . . . . . . . . . . . . . . Slashing 1613 | . . . . . . . . . . . 116 354 216 927 Piercing . | . . . . . . . . . . . . . . . Highest Corruption 1 | . . . . . . . . . . 1 . . . . Average Corruption 1 | . . . . . . . . . . 1 . . . . Corruption Purged . | . . . . . . . . . . . . . . . Effects 2 | . . . . . . . . . . 2 . . . . Message Errors 1 | . . . . . . . . . . 1 . . . . Data Loss (minor) 1 | . . . . . . . . . . 1 . . . . Overload Shots . | . . . . . . . . . . . . . . . Overflow Damage 205 | . . . . . . . . . . . 36 . 35 134 Projectiles . | . . . . . . . . . . . . . . . Explosions . | . . . . . . . . . . . . . . . Melee 205 | . . . . . . . . . . . 36 . 35 134 Knockbacks 1 | . . . . . . . 1 . . . . . . . Impact 1 | . . . . . . . 1 . . . . . . . Kinetic . | . . . . . . . . . . . . . . . Secondary . | . . . . . . . . . . . . . . . Self-Inflicted Damage . | . . . . . . . . . . . . . . . Shots . | . . . . . . . . . . . . . . . Rammed 2 | . . . . . . . 1 . . . 1 . . . Targets Rammed 2 | . . . . . . . 1 . . . 1 . . . Kicked . | . . . . . . . . . . . . . . . Crushed . | . . . . . . . . . . . . . . . Highest Temperature 315 | . . . 60 . 11 117 264 297 . 189 315 99 12 . Average Temperature 76 | . . . 30 . 2 51 99 110 . 61 95 35 12 . Received Heat Transfer 1565 | . . . 84 . 216 54 30 81 24 73 78 607 159 159 Siege Activations . | . . . . . . . . . . . . . . . Robots Corrupted . | . . . . . . . . . . . . . . . Combat Hostiles . | . . . . . . . . . . . . . . . Parts Fried . | . . . . . . . . . . . . . . . Impact Corruptions . | . . . . . . . . . . . . . . . Robots Melted . | . . . . . . . . . . . . . . . Combat Hostiles . | . . . . . . . . . . . . . . . Parts Melted . | . . . . . . . . . . . . . . . Heat Transferred 257 | . . . 222 . . . . . . . . 35 . . Parts Sabotaged . | . . . . . . . . . . . . . . . Parts Stolen . | . . . . . . . . . . . . . . . Parts Stripped . | . . . . . . . . . . . . . . . Power Chain Reactions . | . . . . . . . . . . . . . . . Missiles Intercepted . | . . . . . . . . . . . . . . . Alert | -11 -10 -9 -9 -9 -8 -8 -7 -7 -7 -7 -6 -6 -6 -6 ------- Run | Scr Mat Mat Min Exi Min Mat Fac Gar Fac Gar Fac Gar Fac Gar Peak Influence 965 | . 15 35 131 . 150 419 658 965 521 674 680 610 437 290 Initial 506 | . . 5 13 . . . 99 460 506 364 353 424 316 195 Average 367 | . 4 33 86 . 43 199 359 696 511 513 477 481 320 256 Maximum Alert Level 3 | . . . . . . 2 2 3 2 2 2 2 2 1 Low Security (%) 25 | 100 100 100 100 . 100 37 39 . . . . . . 24 Level 1 29 | . . . . . . 56 22 . . 14 27 18 98 75 Level 2 40 | . . . . . . 6 37 60 100 85 72 81 1 . Level 3 4 | . . . . . . . . 39 . . . . . . Level 4 . | . . . . . . . . . . . . . . . Level 5 . | . . . . . . . . . . . . . . . High Security . | . . . . . . . . . . . . . . . Max Security . | . . . . . . . . . . . . . . . Squads Dispatched 10 | . . 2 . . . . 4 . . . 2 . 2 . Investigation . | . . . . . . . . . . . . . . . Extermination 2 | . . . . . . . 1 . . . 1 . . . Reinforcement 4 | . . 2 . . . . . . . . . . 2 . Assault . | . . . . . . . . . . . . . . . Garrison 4 | . . . . . . . 3 . . . 1 . . . Intercept . | . . . . . . . . . . . . . . . Construction Impeded . | . . . . . . . . . . . . . . . Haulers Reinforced . | . . . . . . . . . . . . . . . Stealth | -11 -10 -9 -9 -9 -8 -8 -7 -7 -7 -7 -6 -6 -6 -6 --------- Run | Scr Mat Mat Min Exi Min Mat Fac Gar Fac Gar Fac Gar Fac Gar Distress Signals 2 | . . . . . . 1 1 . . . . . . . Communications Jammed . | . . . . . . . . . . . . . . . Distress Signals . | . . . . . . . . . . . . . . . Times Spotted 153 | . 1 3 9 . 7 12 14 19 1 16 17 31 15 8 Peak Tracking Total 16 | . 1 3 5 . 4 3 4 4 1 7 6 16 4 3 Tactical Retreats 6 | . . . 1 . . . . . . 1 . 1 1 2 Traps | -11 -10 -9 -9 -9 -8 -8 -7 -7 -7 -7 -6 -6 -6 -6 ------- Run | Scr Mat Mat Min Exi Min Mat Fac Gar Fac Gar Fac Gar Fac Gar Traps Triggered 4 | . . . . . . . 1 . . . 1 . 2 . Indirectly . | . . . . . . . . . . . . . . . Trap Hack Attempts . | . . . . . . . . . . . . . . . Triggered . | . . . . . . . . . . . . . . . Disarmed . | . . . . . . . . . . . . . . . Reprogrammed . | . . . . . . . . . . . . . . . Reused . | . . . . . . . . . . . . . . . Traps Extracted . | . . . . . . . . . . . . . . . Installed . | . . . . . . . . . . . . . . . Triggered . | . . . . . . . . . . . . . . . Machines | -11 -10 -9 -9 -9 -8 -8 -7 -7 -7 -7 -6 -6 -6 -6 ---------- Run | Scr Mat Mat Min Exi Min Mat Fac Gar Fac Gar Fac Gar Fac Gar Machines Disabled 18 | . . . . . . 3 . 2 . 2 7 3 . 1 Max in Single Turn 1 | . . . . . . 1 . 1 . 1 1 1 . 1 Garrison Relay 8 | . . . . . . . . 2 . 2 . 3 . 1 Machines Sabotaged . | . . . . . . . . . . . . . . . Garrisons Compromised . | . . . . . . . . . . . . . . . Overloaded Fab Kills . | . . . . . . . . . . . . . . . Fab Network Shutdowns 1 | . . . . . . . 1 . . . . . . . Hacking | -11 -10 -9 -9 -9 -8 -8 -7 -7 -7 -7 -6 -6 -6 -6 --------- Run | Scr Mat Mat Min Exi Min Mat Fac Gar Fac Gar Fac Gar Fac Gar Machines Accessed 11 | . . . . . . 5 2 . 1 . 1 . 2 . Terminals 6 | . . . . . . 5 . . . . . . 1 . Fabricators 1 | . . . . . . . 1 . . . . . . . Repair Stations . | . . . . . . . . . . . . . . . Recycling Units . | . . . . . . . . . . . . . . . Scanalyzers . | . . . . . . . . . . . . . . . Garrison Access 4 | . . . . . . . 1 . 1 . 1 . 1 . Total Hacks 28 | . . . . . . 19 4 . 1 . 1 . 3 . Successful 16 | . . . . . . 9 3 . 1 . 1 . 2 . Failed 12 | . . . . . . 10 1 . . . . . 1 . Catastrophic 2 | . . . . . . 1 . . . . . . 1 . Database Lockouts . | . . . . . . . . . . . . . . . Manual 23 | . . . . 3 . 18 . . . . . . 2 . Terminals 21 | . . . . . . 19 . . . . . . 2 . Fabricators 2 | . . . . . . . 2 . . . . . . . Repair Stations . | . . . . . . . . . . . . . . . Recycling Units . | . . . . . . . . . . . . . . . Scanalyzers . | . . . . . . . . . . . . . . . Garrison Access 5 | . . . . . . . 2 . 1 . 1 . 1 . Terminal Hacks 5 | . . . . . . 5 . . . . . . . . Prototype ID Bank 1 | . . . . . . 1 . . . . . . . . Level Access Points 2 | . . . . . . 2 . . . . . . . . Branch Access Points 1 | . . . . . . 1 . . . . . . . . Terminal Index 1 | . . . . . . 1 . . . . . . . . Fabricator Hacks 2 | . . . . . . . 2 . . . . . . . Build 2 | . . . . . . . 2 . . . . . . . Repair Station Hacks . | . . . . . . . . . . . . . . . Recycling Unit Hacks . | . . . . . . . . . . . . . . . Scanalyzer . | . . . . . . . . . . . . . . . Garrison Access Hacks 4 | . . . . . . . 1 . 1 . 1 . 1 . Unlock Access 4 | . . . . . . . 1 . 1 . 1 . 1 . Unauthorized Hacks 5 | . . . . . . 4 . . . . . . 1 . Terminals 5 | . . . . . . 4 . . . . . . 1 . Botnet 4 | . . . . . . 3 . . . . . . 1 . Operators 1 | . . . . . . 1 . . . . . . . . Fabricators . | . . . . . . . . . . . . . . . Repair Stations . | . . . . . . . . . . . . . . . Recycling Units . | . . . . . . . . . . . . . . . Scanalyzers . | . . . . . . . . . . . . . . . Garrison Access . | . . . . . . . . . . . . . . . Data Cores Recovered 2 | . . . . . . 2 . . . . . . . . Used 1 | . . . . . . 1 . . . . . . . . Hacking Detections 8 | . . . . . . 5 2 . . . . . 1 . Full Trace Events . | . . . . . . . . . . . . . . . Feedback Events . | . . . . . . . . . . . . . . . Feedback Blocked . | . . . . . . . . . . . . . . . Robot Schematics Acquired . | . . . . . . . . . . . . . . . Robots Built . | . . . . . . . . . . . . . . . Matter . | . . . . . . . . . . . . . . . Time . | . . . . . . . . . . . . . . . Total Robot Build Rating . | . . . . . . . . . . . . . . . Part Schematics Acquired . | . . . . . . . . . . . . . . . Parts Built 4 | . . . . . . . 4 . . . . . . . Matter 424 | . . . . . . . 424 . . . . . . . Time 106 | . . . . . . . 106 . . . . . . . Total Part Build Rating 24 | . . . . . . . 24 . . . . . . . Parts Repaired . | . . . . . . . . . . . . . . . Time . | . . . . . . . . . . . . . . . Parts Recycled . | . . . . . . . . . . . . . . . Recycled Matter . | . . . . . . . . . . . . . . . Retrieved Matter . | . . . . . . . . . . . . . . . Retrieved Components . | . . . . . . . . . . . . . . . Parts Scanalyzed . | . . . . . . . . . . . . . . . Part Schematics Acquired . | . . . . . . . . . . . . . . . Parts Damaged . | . . . . . . . . . . . . . . . Bothacking | -11 -10 -9 -9 -9 -8 -8 -7 -7 -7 -7 -6 -6 -6 -6 ------------ Run | Scr Mat Mat Min Exi Min Mat Fac Gar Fac Gar Fac Gar Fac Gar Used RIF Installer 3 | . . . . . . . . 1 . 1 . 1 . . Watcher Feeds 1 | . . . . . . . . . . . . 1 . . Structural Interface 1 | . . . . . . . . . . 1 . . . . Robots Hacked 32 | . . . . . . . . . . 8 1 17 4 2 Non-combat 1 | . . . . . . . . . . . . . 1 . Combat 31 | . . . . . . . . . . 8 1 17 3 2 Robot Hacks Applied 33 | . . . . . . . . . . 8 2 17 4 2 no_distress 1 | . . . . . . . . . . . . . 1 . find_garrison 1 | . . . . . . . . . . . 1 . . . scatter_targeting 1 | . . . . . . . . . . . . . 1 . reboot_system 1 | . . . . . . . . . . . . . . 1 overwrite_iff 12 | . . . . . . . . . . 2 . 10 . . streamctrl_high 1 | . . . . . . . . . . . . 1 . . formatsys_high 16 | . . . . . . . . . . 6 1 6 2 1 Relay Couplers Released 33 | . . . . . . . . 7 . 9 . 13 . 4 Machine Destruction 33 | . . . . . . . . 7 . 9 . 13 . 4 Attached 14 | . . . . . . . . . . 5 2 5 2 . Robots Rewired 3 | . . . . 3 . . . . . . . . . . Allies Hacked . | . . . . . . . . . . . . . . . Hacks Repelled . | . . . . . . . . . . . . . . . Allies | -11 -10 -9 -9 -9 -8 -8 -7 -7 -7 -7 -6 -6 -6 -6 -------- Run | Scr Mat Mat Min Exi Min Mat Fac Gar Fac Gar Fac Gar Fac Gar Total Allies 35 | . . . 3 3 . . . . . 8 1 17 2 1 Largest Group 5 | . . . 3 3 2 . . . . 5 5 3 3 1 Highest-Rated Group 93 | . . . 40 37 29 . . . . 80 80 90 93 32 Highest-Rated Ally 41 | . . . 16 21 21 . . . . 32 16 41 32 32 Total Orders . | . . . . . . . . . . . . . . . Ally Attacks 107 | . . . 14 . 12 . . . . 13 14 33 21 . Total Damage 3515 | . . . 195 . 205 . . . . 269 1339 704 803 . Kills 21 | . . . 2 . . . . . . 2 7 4 6 . Allies Corrupted . | . . . . . . . . . . . . . . . Allies Melted 1 | . . . 1 . . . . . . . . . . . Intel | -11 -10 -9 -9 -9 -8 -8 -7 -7 -7 -7 -6 -6 -6 -6 ------- Run | Scr Mat Mat Min Exi Min Mat Fac Gar Fac Gar Fac Gar Fac Gar Robot Analysis Total . | . . . . . . . . . . . . . . . Derelict Logs Recovered . | . . . . . . . . . . . . . . . Drone Launches . | . . . . . . . . . . . . . . . Drone Recoveries . | . . . . . . . . . . . . . . . Exploration | -11 -10 -9 -9 -9 -8 -8 -7 -7 -7 -7 -6 -6 -6 -6 ------------- Run | Scr Mat Mat Min Exi Min Mat Fac Gar Fac Gar Fac Gar Fac Gar Turns Passed 6133 | 27 33 101 193 583 550 413 794 588 128 408 437 927 733 218 Spaces Moved 3866 | 39 66 109 185 517 325 199 439 336 81 217 235 557 458 103 Core 639 | 39 66 109 114 299 3 . . . . . . 9 . . Treads 1884 | . . . 71 218 4 142 439 336 81 217 235 141 . . Legs 1343 | . . . . . 318 57 . . . . . 407 458 103 Wheels . | . . . . . . . . . . . . . . . Hover . | . . . . . . . . . . . . . . . Flight . | . . . . . . . . . . . . . . . Fastest Speed 50 | 50 50 50 50 50 50 180 160 160 160 160 160 50 120 120 Average Speed 136 | 50 50 50 92 96 149 180 160 160 160 160 160 133 148 147 Slowest Speed 200 | 50 50 50 160 180 200 200 160 160 160 160 160 180 150 150 Overloaded Moves . | . . . . . . . . . . . . . . . Propulsion Burnouts . | . . . . . . . . . . . . . . . Robots Hopped . | . . . . . . . . . . . . . . . Cave-ins Triggered . | . . . . . . . . . . . . . . . Exploration Rate (%) 35 | 3 23 19 50 90 79 23 15 42 2 43 9 95 14 18 Regions Visited 14 Branch Regions 3 Pre-discovered Areas . | . . . . . . . . . . . . . . . Known Exits Taken 5 | . . . . . . 1 1 . 1 . 1 . 1 . Unknown Exits Taken 6 | 1 1 1 1 1 1 . . . . . . . . . Scrap Searched 2 | . . . 1 . 1 . . . . . . . . . Spaces Dug 17 | . . . . . . 7 . . . . 4 . 6 . Terrain Destroyed 51 | . . . . . . 33 5 . . . 6 1 6 . Melee 6 | . . . . . . . . . . . . . 6 . Projectile 45 | . . . . . . 33 5 . . . 6 1 . . AOE . | . . . . . . . . . . . . . . . Terrain Rammed . | . . . . . . . . . . . . . . . Walls Destroyed . | . . . . . . . . . . . . . . . Machines Disabled . | . . . . . . . . . . . . . . . Actions | -11 -10 -9 -9 -9 -8 -8 -7 -7 -7 -7 -6 -6 -6 -6 --------- Run | Scr Mat Mat Min Exi Min Mat Fac Gar Fac Gar Fac Gar Fac Gar Total 4569 | 46 65 154 198 599 361 254 536 390 80 279 293 682 489 143 Wait 155 | . . 46 . 13 5 14 46 . . . 7 6 2 16 Move 3850 | 38 65 108 184 516 324 198 438 334 80 215 234 555 458 103 Hop . | . . . . . . . . . . . . . . . Pick Up 87 | 6 . . 3 3 6 8 11 8 . 12 5 21 2 2 Fast Attach 41 | . . . 1 3 5 3 3 . . 1 1 21 1 2 Attach 45 | 2 . . 3 3 . 1 3 . . 12 7 10 3 1 Detach 7 | . . . . . . 2 . . . 3 1 1 . . Swap 9 | . . . 1 . . 1 1 . . 2 . 2 2 . Drop 61 | . . . 2 2 3 4 14 6 . 10 5 12 3 . Fire 200 | . . . 4 . 18 23 19 42 . 24 30 37 3 . Melee 50 | . . . . . . . . . . . 2 16 14 18 Ram . | . . . . . . . . . . . . . . . Kick . | . . . . . . . . . . . . . . . Crush 2 | . . . . . . . 1 . . . 1 . . . Escape Stasis . | . . . . . . . . . . . . . . . Rewire 62 | . . . . 59 . . . . . . . 1 1 1 Trap . | . . . . . . . . . . . . . . . Miscellaneous . | . . . . . . . . . . . . . . . Route ------- -11/Scrapyard -10/Materials -9/Materials -9/Mines (discovered 2 exits: *Mat / *Exi) -9/Exiles -8/Mines -8/Materials (discovered 3 exits: *Fac x3) -7/Factory (discovered 2 exits: *Fac / Gar) -7/Garrison (discovered 2 exits: *Fac x2) -7/Factory -7/Garrison -6/Factory -6/Garrison (discovered 3 exits: *Fac x3) -6/Factory (discovered 2 exits: [*Low] / Gar) -6/Garrison History --------- Turn | Location | Event 3 | -11/Scrapyard | Discovered new exit (range 15) 28 | -11/Scrapyard | Entered Materials 59 | -10/Materials | Discovered new exit (range 4) 61 | -10/Materials | Entered another Materials area 61 | -9/Materials | Evolved 2 slots: Utility x2 154 | -9/Materials | Discovered new exit (range 15) 162 | -9/Materials | Entered Mines 221 | -9/Mines | Discovered new exit (range 11) 255 | -9/Mines | Received a Rocket Launcher from a helpful Derelict 319 | -9/Mines | Build established: Mutant 321 | -9/Mines | Assisted by bots powering up and referring to "LRC-V3" 353 | -9/Mines | Deemed a non-threat by the Exiles lab entrance 353 | -9/Mines | Discovered new exit (range 5) 355 | -9/Mines | Entered Exiles 355 | -9/Exiles | Found Exiles lab destroyed 412 | -9/Exiles | Opened EX-Vault 417 | -9/Exiles | Found Prototype Ballistic Gun 907 | -9/Exiles | Discovered new exit (range 15) 938 | -9/Exiles | Entered Mines 938 | -8/Mines | Accompanied by 3 allies 993 | -8/Mines | Lost 3 parts (3n) 1255 | -8/Mines | Build established: Scavenger-Mutant 1466 | -8/Mines | Discovered new exit (range 15) 1488 | -8/Mines | Entered Materials 1488 | -8/Materials | Evolved 2 slots: Weapon x2 1490 | -8/Materials | Identified XL Autogun Array 1643 | -8/Materials | Identified exit to Factory 1840 | -8/Materials | Build established: Scavenger-Gunner 1901 | -8/Materials | Entered Factory 1901 | -7/Factory | Evolved 2 slots: Propulsion x2 2070 | -7/Factory | Garrison activated, responded to threat 2305 | -7/Factory | Fabricated Hvy. Treads? 2379 | -7/Factory | Fabricated Hvy. Treads (x2) 2394 | -7/Factory | Local fabrication network quarantined 2416 | -7/Factory | Discovered new exit (range 16) 2615 | -7/Factory | Build established: Hauler-Gunner 2694 | -7/Factory | Identified exit to Garrison 2695 | -7/Factory | Entered Garrison 2726 | -7/Garrison | Triggered checkpoint 2762 | -7/Garrison | Garrison Relay disabled 2842 | -7/Garrison | Triggered checkpoint 2930 | -7/Garrison | Discovered new exit (range 14) 2963 | -7/Garrison | Installed Relay Interface Framework 3062 | -7/Garrison | Triggered checkpoint 3134 | -7/Garrison | Triggered checkpoint 3153 | -7/Garrison | Garrison Relay disabled 3254 | -7/Garrison | Discovered new exit (range 14) 3283 | -7/Garrison | Entered Factory 3303 | -7/Factory | Identified exit to Garrison 3411 | -7/Factory | Entered Garrison 3419 | -7/Garrison | Expanded RIF knowledge: Structural Interface 3442 | -7/Garrison | Triggered checkpoint 3461 | -7/Garrison | Build established: Bothacker-Gunner 3529 | -7/Garrison | Garrison Relay disabled 3530 | -7/Garrison | Triggered checkpoint 3650 | -7/Garrison | Triggered checkpoint 3710 | -7/Garrison | Triggered checkpoint 3739 | -7/Garrison | Garrison Relay disabled 3798 | -7/Garrison | Discovered new exit (range 12) 3819 | -7/Garrison | Entered Factory 3819 | -6/Factory | Accompanied by 5 allies 3819 | -6/Factory | Evolved 2 slots: Utility x2 4241 | -6/Factory | Garrison activated, responded to threat 4250 | -6/Factory | Identified exit to Garrison 4256 | -6/Factory | Entered Garrison 4282 | -6/Garrison | Triggered checkpoint 4347 | -6/Garrison | Garrison Relay disabled 4434 | -6/Garrison | Triggered checkpoint 4434 | -6/Garrison | Triggered checkpoint 4498 | -6/Garrison | Core integrity fell below 50% 4521 | -6/Garrison | Lost 5 parts (1p2n2w) 4644 | -6/Garrison | Triggered checkpoint 4647 | -6/Garrison | Garrison Relay disabled 4734 | -6/Garrison | Triggered checkpoint 4819 | -6/Garrison | Discovered new exit (range 13) 4936 | -6/Garrison | Triggered checkpoint 4959 | -6/Garrison | Discovered new exit (range 10) 4977 | -6/Garrison | Expanded RIF knowledge: Patrol Navigation 5068 | -6/Garrison | Triggered checkpoint 5078 | -6/Garrison | Garrison Relay disabled 5122 | -6/Garrison | Lost 3 parts (1p2n) 5164 | -6/Garrison | Discovered new exit (range 12) 5183 | -6/Garrison | Entered Factory 5183 | -6/Factory | Accompanied by 2 allies 5249 | -6/Factory | Build established: Bothacker-Mutant 5347 | -6/Factory | Core integrity fell below 20% 5571 | -6/Factory | Discovered new exit (range 16) 5916 | -6/Factory | Identified exit to Garrison 5916 | -6/Factory | Entered Garrison 5968 | -6/Garrison | Triggered checkpoint 5969 | -6/Garrison | Garrison Relay disabled 6046 | -6/Garrison | Lost 3 parts (2n1w) 6134 | -6/Garrison | Destroyed by G-50 Soldier with Heavy Laser Last Messages --------------- 06015_ Flexi-carbon Leg destroyed. 06022_ G-50 Soldier destroyed. 06028_ Acquired Carbon-fiber Leg. 06029_ Acquired 10 matter. 06044_ RIF reveals location of phase wall. 06052_ Carbon-fiber Leg destroyed. 06052_ RIF reveals location of hidden door. 06066_ Jacked Y-54 Guardian... >>formatsys_high Rerouting network defenses. Erasing system data. Installing primary routines, ETC: 6. 06068_ Reactivated Guardian 5f. 06079_ RIF reveals location of hidden door. 06081_ RIF reveals location of phase wall. 06094_ Acquired Variable Charge Gun. 06105_ RIF reveals location of hidden door. 06117_ RIF reveals location of phase wall. 06126_ RIF reveals location of hidden door. 06133_ RIF reveals location of phase wall. Map ----- +----------------------------------------------------+ | ??????????????????#####+++####[#?????????????????? | | ??????????????????# ## #?????????????????? | | ??????????????????# ## #?????????????????? | | ??????????????????# ### #### #?????????????????? | | ??????????????????# #?# + #?????????????????? | | ??????????????????# #?######## #?????????????????? | | ??????????????????# #????????# #?????????????????? | | ??????????######### #????????# #?????????????????? | | ??????????# + #????????# ######????????????? | | ??????????# ##!!!## #????????# ## #????###"""""" | | ??????????# ####### #???######+## ### " " | | ??????????# + +???+ + " | | ??????????# ## [[## #???# ### " | | ??????????# ####### #???# ###+######???? " " | | ??????????# + #???# #?# #???????????""" "" | | ??????????# ##!!!## #???# #?# #????????????? ??? | | ??????????# ####??# #???? #?# #?????????????????? | | ??????????# #?????# ### # g#?# #?????????????????? | | ??????????# #?????# +? #?????????????????? | | ??????????# #?????#+##### #?###?????????????????? | | ??????????? ??????# #???# #?????????????????????? | | ??????????? ??????# #???# #?????????????????????? | | ??????????? ??????# #???# #?????????????????????? | | ??????????? ?######+##### ###########???????????? | | ??????????? ?# ????????? | | ??????????? ?+ Y @ ????????? | | ???????????+?# ######### #######???????????????? | | ?????????????# ?????????# #?????????????????????? | | ?????????????#??????????# #?????????????????????? | | ????????????????????????# #?????????????????????? | | ????????????????????????# #?????????????????????? | | ????????????????????????# #?????????????????????? | | ????????????????????????# g#?????????????????????? | | ????????????????????????# #?????????????????????? | | ?????????????????????????g #?????????????????????? | | ?????????????????????????g +?????????????????????? | | ?????????????????????????###?????????????????????? | | ?????????????????????????????????????????????????? | | ?????????????????????????????????????????????????? | | ?????????????????????????????????????????????????? | | ?????????????????????????????????????????????????? | | ?????????????????????????????????????????????????? | | ?????????????????????????????????????????????????? | | ?????????????????????????????????????????????????? | | ?????????????????????????????????????????????????? | | ?????????????????????????????????????????????????? | | ?????????????????????????????????????????????????? | | ?????????????????????????????????????????????????? | | ?????????????????????????????????????????????????? | | ?????????????????????????????????????????????????? | +----------------------------------------------------+ Best States ------------- Heat Dissipation 37 Energy Generation 18 Energy Capacity 290 Matter Stores 300 Matter Capacity 300 Sight Range 16 Terrain Scan Density 10 Cloak Strength 3 Evasion (%) 50 Recoil Reduction 4 Salvage Targeting 4 Offensive Hacking 10 Relay Coupler Types 94 Relay Coupler Value 3 Item Schematics ----------------- None Robot Schematics ------------------ None Fabricated ------------ Hvy. Treads | x2 | -7/Factory | Preloaded Hvy. Treads | x2 | -7/Factory | Preloaded Alien Tech Used ----------------- None Achievements -------------- None Challenges ------------ None Game ------ Seed NetworkLayeredNeutralizer Manual? 0 Play Time 00:59:56 Cumulative 44.7 hours Start 2021.01.26 @ 20:52:49 End 2021.01.27 @ 06:37:18 Sessions 3 Manual Loads 0 Difficulty Rogue Special Mode None Game No. 70 Rogue 70 Adventurer 0 Explorer 0 Win Type - Total 1 Types 1/0/0/0/0/0/0/0/0 Lore% 33 Gallery% 46 Achievement% 40 Wizard Run 0 Options --------- ASCII 0 Keyboard 0 Movement Numpad Keybinds 0 Fullscreen 1 Font 18/SmallcapsGlow Map View 76x50 Tactical HUD 1 Map Filters NONE Filters NONE Steam 1 RUN: 2b5d29a6-d08b-4976-85ee-10f91feb0906